bitfinex-derivatives/quotes_BTCF0:USTF0_20250718
["timestamp","ask_amount","ask_price","bid_price","bid_amount"]
[1752832993301,0.276443,118940.0,118930.0,0.31494279]
[1752832993302,0.67103559,118940.0,118930.0,0.31494279]
[1752832994098,0.289463,118940.0,118930.0,0.14686569]
[1752832994597,0.291463,118940.0,118930.0,0.14686569]
[1752832995398,0.292463,118940.0,118930.0,0.14686569]
[1752832997398,0.67403559,118940.0,118930.0,0.14686569]
[1752832997602,0.292463,118940.0,118930.0,0.14686569]
[1752832997806,0.67403559,118940.0,118930.0,0.14686569]
[1752832998100,0.292463,118940.0,118930.0,0.14686569]
[1752832998302,0.67403559,118940.0,118930.0,0.14686569]
[1752832998806,0.67403559,118940.0,118930.0,0.12337]
[1752832999203,0.292463,118940.0,118930.0,0.12337]
[1752832999504,0.292463,118940.0,118930.0,0.14686126]
[1752833000206,0.292463,118940.0,118930.0,0.12337]
[1752833001106,0.292463,118940.0,118930.0,0.2914471]
[1752833003099,0.1244,118940.0,118930.0,0.67301969]
[1752833003302,0.292463,118940.0,118930.0,0.67301969]
[1752833003803,0.292463,118940.0,118930.0,0.2914471]
[1752833005008,0.292463,118940.0,118930.0,0.67301969]
[1752833005311,0.292463,118940.0,118930.0,0.2914471]
[1752833005706,0.292463,118940.0,118930.0,0.12337]
[1752833006107,0.292463,118940.0,118930.0,0.14686128]
[1752833007408,0.292463,118940.0,118930.0,0.31493838]
[1752833009609,0.292463,118940.0,118930.0,0.2914471]
[1752833010203,0.292463,118940.0,118930.0,0.31531451]
[1752833010714,0.292463,118940.0,118930.0,0.12337]
[1752833012914,0.67403559,118940.0,118930.0,0.08359]
[1752833014821,0.67403559,118940.0,118930.0,0.10748634]
[1752833015018,0.67403559,118940.0,118930.0,0.12832634]
[1752833015316,0.67403559,118940.0,118930.0,0.14678634]
[1752833016516,0.292463,118940.0,118930.0,0.31486344]
[1752833018828,0.292463,118940.0,118930.0,0.14678634]
[1752833020223,0.292463,118940.0,118930.0,0.12289]
[1752833020528,0.67403559,118940.0,118930.0,0.12289]
[1752833021327,0.73444344,118940.0,118930.0,0.12289]
[1752833024027,1.31960344,118940.0,118930.0,0.12289]
[1752833026530,1.31960344,118940.0,118930.0,0.11092]
[1752833026728,1.25919559,118940.0,118930.0,0.11092]
[1752833027030,1.25919559,118940.0,118930.0,0.12352]
[1752833028427,1.31960344,118940.0,118930.0,0.12352]
[1752833030133,1.25919559,118940.0,118930.0,0.14730986]
[1752833030822,1.31960344,118940.0,118930.0,0.12352]
[1752833031835,1.25919559,118940.0,118930.0,0.12352]
[1752833032829,1.25919559,118940.0,118930.0,0.11092]
[1752833033535,1.25919559,118940.0,118930.0,0.08359]
[1752833034436,1.25919559,118940.0,118930.0,0.11571]
[1752833036140,1.25919559,118940.0,118930.0,0.2898671]
[1752833036839,1.25919559,118940.0,118930.0,0.12179]
[1752833039440,1.25919559,118940.0,118930.0,0.10919]
[1752833039640,1.25919559,118940.0,118930.0,0.10311]
[1752833039837,0.2728171,118930.0,118920.0,0.32029438]
[1752833040043,0.66676969,118930.0,118920.0,0.07042727]
[1752833041344,0.66676969,118930.0,118920.0,0.04034727]
[1752833041645,0.2852253,118910.0,118900.0,0.43329534]
[1752833041844,0.2852253,118910.0,118900.0,0.4566247]
[1752833042242,0.2852253,118910.0,118900.0,0.44672872]
[1752833042442,0.2852253,118910.0,118900.0,0.45280872]
[1752833042643,0.2852253,118910.0,118900.0,0.32717155]
[1752833042844,0.2852253,118910.0,118900.0,0.33017155]
[1752833044347,0.2852253,118910.0,118900.0,0.10397205]
[1752833045246,0.2852253,118910.0,118900.0,0.12385205]
[1752833046448,0.293435,118910.0,118900.0,0.12385205]
[1752833046851,0.293435,118910.0,118900.0,0.10689936]
[1752833047348,0.67500759,118910.0,118900.0,0.10689936]
[1752833047544,0.293435,118910.0,118900.0,0.2712095]
[1752833047848,0.293435,118910.0,118900.0,0.12028446]
[1752833048042,0.293435,118910.0,118900.0,0.10076446]
[1752833049247,0.293435,118910.0,118900.0,0.12028446]
[1752833050445,0.67500759,118910.0,118900.0,0.12028446]
[1752833051150,0.67500759,118910.0,118900.0,0.10076446]
[1752833051349,0.67500759,118910.0,118900.0,0.08088446]
[1752833051556,0.67500759,118910.0,118900.0,0.10418661]
[1752833052148,0.67500759,118910.0,118900.0,0.08088446]
[1752833053453,0.67500759,118910.0,118900.0,0.10076446]
[1752833055851,0.293435,118910.0,118900.0,0.10076446]
[1752833056052,0.67500759,118910.0,118900.0,0.10076446]
[1752833057753,0.293435,118910.0,118900.0,0.10076446]
[1752833057953,0.67500759,118910.0,118900.0,0.10076446]
[1752833060059,0.293435,118910.0,118900.0,0.10076446]
[1752833060260,0.67500759,118910.0,118900.0,0.10076446]
[1752833061264,0.67500759,118910.0,118900.0,0.08088446]
[1752833061658,0.67500759,118910.0,118900.0,0.05027446]
[1752833062557,0.67500759,118910.0,118900.0,0.02019446]
[1752833063065,0.723343,118910.0,118900.0,0.02019446]
[1752833063463,0.723343,118910.0,118900.0,0.04888446]
[1752833064464,0.723343,118910.0,118900.0,0.003]
[1752833065169,0.67562528,118910.0,118900.0,0.003]
[1752833066372,0.73606339,118910.0,118900.0,0.003]
[1752833067267,0.67562528,118910.0,118900.0,0.003]
[1752833068469,0.2807236,118890.0,118880.0,0.0744044]
[1752833068662,0.66291388,118890.0,118880.0,0.09738588]
[1752833068862,0.66291388,118890.0,118880.0,0.14905588]
[1752833069266,0.2807236,118890.0,118880.0,0.15490588]
[1752833069673,0.2807236,118890.0,118880.0,0.15890588]
[1752833070171,0.66291388,118890.0,118880.0,0.12106588]
[1752833070471,0.66291388,118890.0,118880.0,0.10138588]
[1752833071172,0.66291388,118890.0,118880.0,0.07275588]
[1752833071672,0.66291388,118890.0,118880.0,0.10138588]
[1752833071976,0.66291388,118890.0,118880.0,0.0784044]
[1752833072772,0.66291388,118890.0,118880.0,0.0497744]
[1752833073072,0.66291388,118890.0,118880.0,0.0547744]
[1752833073273,0.66291388,118890.0,118880.0,0.0517744]
[1752833073572,0.66291388,118890.0,118880.0,0.0487744]
[1752833074269,0.66291388,118890.0,118880.0,0.0200844]
[1752833075372,0.66291388,118890.0,118880.0,0.0487744]
[1752833076868,0.66291388,118890.0,118880.0,0.0200844]
[1752833080971,0.66291388,118890.0,118880.0,0.1290744]
[1752833081569,1.24731388,118890.0,118880.0,0.1290744]
[1752833081972,0.2807236,118890.0,118880.0,0.1290744]
[1752833082173,1.24731388,118890.0,118880.0,0.1290744]
[1752833083275,1.24731388,118890.0,118880.0,0.1176644]
[1752833085073,1.72518956,118890.0,118880.0,0.0970844]
[1752833086875,1.72518956,118890.0,118880.0,0.07183589]
[1752833087076,1.72518956,118890.0,118880.0,0.04314589]
[1752833088177,1.72518956,118890.0,118880.0,0.07414589]
[1752833088383,1.72518956,118890.0,118880.0,0.04314589]
[1752833089880,1.72518956,118890.0,118880.0,0.07414589]
[1752833090081,1.72518956,118890.0,118880.0,0.05706149]
[1752833092280,1.72518956,118890.0,118880.0,0.034]
[1752833093180,1.72518956,118890.0,118880.0,0.003]
[1752833093581,1.78562767,118890.0,118880.0,0.003]
[1752833096887,1.78562767,118890.0,118870.0,0.06174]
[1752833097087,1.78562767,118890.0,118840.0,0.09612202]
[1752833097088,0.23609,118850.0,118840.0,0.09612202]
[1752833097290,1.26267298,118850.0,118840.0,0.07350371]
[1752833097682,1.29183298,118850.0,118840.0,0.10450371]
[1752833098178,1.29183298,118850.0,118840.0,0.11150371]
[1752833098384,1.35927173,118850.0,118840.0,0.11150371]
[1752833099086,1.31170938,118850.0,118840.0,0.14224371]
[1752833099386,1.31170938,118850.0,118840.0,0.31044931]
[1752833100391,1.31170938,118850.0,118840.0,0.31044911]
[1752833100692,0.93774158,118850.0,118840.0,0.31044911]
[1752833100890,1.32021221,118850.0,118840.0,0.31044911]
[1752833101292,1.32021221,118850.0,118840.0,0.14224371]
[1752833102894,1.32021221,118850.0,118840.0,0.12504]
[1752833103397,1.33893465,118850.0,118840.0,0.12504]
[1752833103597,1.33893465,118850.0,118840.0,0.08817]
[1752833103991,1.33893465,118850.0,118840.0,0.038]
[1752833104194,1.34893465,118850.0,118840.0,0.007]
[1752833104603,0.2537991,118830.0,118820.0,0.0786228]
[1752833104794,1.23725973,118830.0,118820.0,0.0478828]
[1752833104992,1.23725973,118830.0,118820.0,0.031]
[1752833105195,0.27055267,118820.0,118810.0,0.07862432]
[1752833105491,0.6530233,118820.0,118810.0,0.07862432]
[1752833105692,0.6530233,118820.0,118810.0,0.12922432]
[1752833105889,0.6530233,118820.0,118810.0,0.13492432]
[1752833106088,0.27055267,118820.0,118810.0,0.30317252]
[1752833106298,0.6530233,118820.0,118810.0,0.30317252]
[1752833106491,0.27055267,118820.0,118810.0,0.30317252]
[1752833106800,0.270684,118820.0,118810.0,0.30317252]
[1752833106998,0.10245,118820.0,118810.0,0.30317252]
[1752833107200,0.2706834,118820.0,118810.0,0.30317252]
[1752833107499,0.10245,118820.0,118810.0,0.30417252]
[1752833107700,0.65315403,118820.0,118810.0,0.30417182]
[1752833107896,0.48492063,118820.0,118810.0,0.30417182]
[1752833108200,0.48492063,118820.0,118810.0,0.30717182]
[1752833108390,0.65315363,118820.0,118810.0,0.30717182]
[1752833109296,0.65315363,118820.0,118810.0,0.13892432]
[1752833109899,0.65315363,118820.0,118810.0,0.30717252]
[1752833110896,0.00569,118820.0,118810.0,0.68964315]
[1752833111200,0.8800048,118840.0,118830.0,0.2125902]
[1752833111392,0.8800048,118840.0,118830.0,0.2862602]
[1752833111595,0.8800048,118840.0,118830.0,0.11804]
[1752833111800,1.27934543,118840.0,118830.0,0.11804]
[1752833112101,1.27938543,118840.0,118830.0,0.2862602]
[1752833112293,1.27938543,118840.0,118830.0,0.01193]
[1752833112492,1.27938543,118840.0,118830.0,0.05646]
[1752833112691,1.28238543,118840.0,118830.0,0.05646]
[1752833112899,0.69818543,118840.0,118830.0,0.05646]
[1752833113202,1.28238543,118840.0,118830.0,0.05746]
[1752833113501,0.69818543,118840.0,118830.0,0.05746]
[1752833113802,1.28238543,118840.0,118830.0,0.05746]
[1752833114297,0.69818543,118840.0,118830.0,0.05746]
[1752833114601,1.28234543,118840.0,118830.0,0.001]
[1752833115400,1.66481606,118840.0,118830.0,0.001]
[1752833115803,1.66481606,118840.0,118810.0,0.02869432]
[1752833115804,0.1933532,118820.0,118810.0,0.02869432]
[1752833116103,1.25187383,118820.0,118810.0,0.02869432]
[1752833116298,1.25187383,118820.0,118810.0,0.10245432]
[1752833116900,1.25187383,118820.0,118810.0,0.27070142]
[1752833117203,1.25187383,118820.0,118810.0,0.10245432]
[1752833117404,1.25187383,118820.0,118810.0,0.10645432]
[1752833117806,1.25187383,118820.0,118810.0,0.27470142]
[1752833118106,1.25187383,118820.0,118810.0,0.30524142]
[1752833118806,1.25187383,118820.0,118810.0,0.13699432]
[1752833119007,1.25187383,118820.0,118810.0,0.10645432]
[1752833119607,1.25187383,118820.0,118810.0,0.27470122]
[1752833119908,1.25187383,118820.0,118810.0,0.30524122]
[1752833122611,1.25187383,118820.0,118810.0,0.27470122]
[1752833123411,1.25187383,118820.0,118810.0,0.08711432]
[1752833123607,1.25187383,118820.0,118810.0,0.04667432]
[1752833123805,0.8694032,118820.0,118810.0,0.04667432]
[1752833124005,1.25187383,118820.0,118810.0,0.21492152]
[1752833124310,1.25187383,118820.0,118810.0,0.04667432]
[1752833124510,1.25187383,118820.0,118810.0,0.21492152]
[1752833124711,1.25187383,118820.0,118810.0,0.22673152]
[1752833125106,1.25187383,118820.0,118810.0,0.25536152]
[1752833125410,1.25187383,118820.0,118810.0,0.08711432]
[1752833125710,1.25187383,118820.0,118810.0,0.04667432]
[1752833125909,1.25187383,118820.0,118810.0,0.21492122]
[1752833126111,1.25187383,118820.0,118810.0,0.05848432]
[1752833126312,1.25187383,118820.0,118810.0,0.22673122]
[1752833126914,1.25187383,118820.0,118810.0,0.05848432]
[1752833127113,1.25187383,118820.0,118810.0,0.02088432]
[1752833127814,1.25187383,118820.0,118810.0,0.18913132]
[1752833128212,1.25187383,118820.0,118810.0,0.02088432]
[1752833129314,1.25187383,118820.0,118810.0,0.18913142]
[1752833129615,1.25187383,118820.0,118810.0,0.20906142]
[1752833129810,1.25187383,118820.0,118810.0,0.2039871]
[1752833130010,1.25187383,118820.0,118810.0,0.2098471]
[1752833130216,0.8694032,118820.0,118810.0,0.2384771]
[1752833130417,1.25187383,118820.0,118810.0,0.2384771]
[1752833131613,1.25187383,118820.0,118810.0,0.1980371]
[1752833132619,1.25187383,118820.0,118810.0,0.004]
[1752833133019,0.66767383,118820.0,118810.0,0.004]
[1752833134319,1.25263383,118820.0,118810.0,0.004]
[1752833138009,0.2852315,118800.0,118790.0,0.04447841]
[1752833138215,0.66770213,118800.0,118790.0,0.04447841]
[1752833138416,1.25238213,118800.0,118790.0,0.21275411]
[1752833138719,1.25238213,118800.0,118790.0,0.29832411]
[1752833139023,1.25238213,118800.0,118790.0,0.30332411]
[1752833140423,0.66770213,118800.0,118790.0,0.3112458]
[1752833141325,0.2852315,118800.0,118790.0,0.3112458]
[1752833141526,0.2852315,118800.0,118790.0,0.3132458]
[1752833143428,0.2852315,118800.0,118790.0,0.8993658]
[1752833150230,0.66770213,118800.0,118790.0,0.8993658]
[1752833150431,0.2852315,118800.0,118790.0,0.8993658]
[1752833151433,0.66770213,118800.0,118790.0,0.8993658]
[1752833152328,0.03004,118800.0,118790.0,1.28183643]
[1752833152634,0.3264224,118820.0,118810.0,0.2859149]
[1752833152834,0.07406,118820.0,118810.0,0.8707949]
[1752833153029,0.06721,118840.0,118830.0,0.1884066]
[1752833153325,0.2236183,118850.0,118840.0,0.2858724]
[1752833153530,0.2236183,118850.0,118840.0,0.8710324]
[1752833153730,0.2422483,118850.0,118840.0,0.11767]
[1752833153932,0.63649893,118850.0,118840.0,0.70287]
[1752833154129,0.63649893,118850.0,118840.0,0.8710724]
[1752833154634,0.67440065,118850.0,118840.0,0.8710724]
[1752833154834,0.29193002,118850.0,118840.0,0.8710724]
[1752833155034,0.67440065,118850.0,118840.0,0.70287]
[1752833155234,0.67940065,118850.0,118840.0,0.70287]
[1752833156533,0.29693002,118850.0,118840.0,0.70287]
[1752833156734,0.67940065,118850.0,118840.0,0.70287]
[1752833157330,0.67940065,118850.0,118840.0,0.07627]
[1752833157525,0.67940065,118850.0,118840.0,0.66103]
[1752833157730,0.67940065,118850.0,118840.0,0.67274]
[1752833157931,0.67940065,118850.0,118840.0,0.70243]
[1752833160440,0.67940065,118850.0,118840.0,0.11767]
[1752833160640,0.67940065,118850.0,118840.0,0.70303]
[1752833161338,0.67940065,118850.0,118840.0,0.8712322]
[1752833161339,0.247248,118850.0,118840.0,0.8712322]
[1752833164241,0.005,118850.0,118840.0,1.25370283]
[1752833165839,0.005,118850.0,118840.0,0.66834283]
[1752833166045,0.173188,118850.0,118840.0,1.25374283]
[1752833167943,0.193428,118850.0,118840.0,0.2858722]
[1752833168249,0.67084863,118850.0,118840.0,0.8711522]
[1752833169049,0.67084863,118850.0,118840.0,0.8707922]
[1752833169448,0.288378,118850.0,118840.0,0.8707922]
[1752833171648,0.67084863,118850.0,118840.0,0.04243]
[1752833171950,0.2833928,118840.0,118830.0,0.35320523]
[1752833172151,0.66586343,118840.0,118830.0,0.870287]
[1752833172556,0.66586343,118840.0,118830.0,0.70207]
[1752833172746,0.66586343,118840.0,118830.0,0.35484122]
[1752833173052,0.66586343,118840.0,118830.0,0.93912122]
[1752833173652,0.66786343,118840.0,118830.0,0.93912122]
[1752833173849,0.66786343,118840.0,118830.0,0.35484122]
[1752833174051,0.66786343,118840.0,118830.0,0.93908122]
[1752833176351,0.67186343,118840.0,118830.0,0.93908122]
[1752833178054,0.67186343,118840.0,118830.0,0.35484122]
[1752833178252,0.67186343,118840.0,118830.0,0.93908122]
[1752833181351,0.67186343,118840.0,118830.0,0.35484122]
[1752833181551,0.67186343,118840.0,118830.0,0.93908122]
[1752833182858,0.67186343,118840.0,118830.0,0.2858869]
[1752833183159,0.67186343,118840.0,118830.0,0.89270521]
[1752833185554,0.67186343,118840.0,118830.0,0.8700869]
[1752833185762,0.12119,118840.0,118830.0,1.27517584]
[1752833185956,0.2893921,118840.0,118830.0,1.27517584]
[1752833186355,0.006,118840.0,118830.0,1.27517584]
[1752833186658,0.006,118840.0,118830.0,1.27523963]
[1752833186852,0.0840838,118870.0,118850.0,0.168188]
[1752833187053,0.03065,118870.0,118860.0,1.26826716]
[1752833187253,0.38676199,118880.0,118870.0,0.2846597]
[1752833187453,0.39520563,118880.0,118870.0,0.2846597]
[1752833187653,0.3680411,118880.0,118870.0,0.2846597]
[1752833188463,0.3680411,118880.0,118870.0,0.1165]
[1752833189159,0.37661666,118880.0,118870.0,0.1165]
[1752833189459,0.37661666,118880.0,118870.0,0.2846597]
[1752833189655,0.3750411,118880.0,118870.0,0.2846597]
[1752833189860,0.3790411,118880.0,118870.0,0.2846597]
[1752833191056,0.76151173,118880.0,118870.0,0.2846597]
[1752833191258,0.43947921,118880.0,118870.0,0.2846597]
[1752833192061,0.43947921,118880.0,118870.0,0.1165]
[1752833192565,0.3790411,118880.0,118870.0,0.1165]
[1752833193861,0.3370023,118880.0,118870.0,0.2846597]
[1752833198868,0.011,118880.0,118870.0,0.66713033]
[1752833199971,0.1791453,118880.0,118870.0,0.66713033]
[1752833200266,0.1791453,118880.0,118870.0,0.2846595]
[1752833200471,0.2027953,118880.0,118870.0,0.66713013]
[1752833200772,0.2087953,118880.0,118870.0,0.66713013]
[1752833203168,0.67772593,118880.0,118870.0,0.1165]
[1752833203373,0.67772593,118880.0,118870.0,0.70118]
[1752833203774,0.67772593,118880.0,118870.0,0.67215]
[1752833203971,0.2125095,118870.0,118860.0,0.71461273]
[1752833204169,0.66481013,118870.0,118860.0,0.71461273]
[1752833205275,0.66981013,118870.0,118860.0,0.71461273]
[1752833205475,0.66981013,118870.0,118860.0,0.71465273]
[1752833205774,0.2903395,118870.0,118860.0,0.88270603]
[1752833206873,0.2903395,118870.0,118860.0,0.29786603]
[1752833207171,0.2903395,118870.0,118860.0,0.88286603]
[1752833207773,0.2787195,118870.0,118860.0,1.26533666]
[1752833207973,0.2485595,118870.0,118860.0,1.26533666]
[1752833208878,0.008,118870.0,118860.0,1.26533666]
[1752833214184,0.008,118870.0,118860.0,1.29551115]
[1752833214377,0.008,118870.0,118860.0,1.31814201]
[1752833215680,0.008,118870.0,118860.0,1.29551115]
[1752833216082,0.008,118870.0,118860.0,1.3181494]
[1752833216479,0.008,118870.0,118860.0,1.29551115]
[1752833217076,0.008,118870.0,118860.0,1.31878382]
[1752833221286,0.008,118870.0,118860.0,1.31125807]
[1752833223385,0.008,118870.0,118860.0,0.92878744]
[1752833223586,0.008,118870.0,118860.0,1.31125807]
[1752833227087,0.0727686,118890.0,118880.0,0.2407746]
[1752833227088,0.295974,118890.0,118880.0,0.2407746]
[1752833227386,0.1678781,118900.0,118890.0,0.1681305]
[1752833227591,0.3666265,118900.0,118890.0,0.6866438]
[1752833227789,0.3666265,118900.0,118890.0,0.66337113]
[1752833227990,0.3967865,118900.0,118890.0,0.66337113]
[1752833228491,0.3967865,118900.0,118890.0,0.2809005]
[1752833228690,0.4084065,118900.0,118890.0,0.66337113]
[1752833229783,0.4124065,118900.0,118890.0,0.66337113]
[1752833230089,0.4134065,118900.0,118890.0,0.66337113]
[1752833231293,0.4134065,118900.0,118890.0,0.6866857]
[1752833232594,0.4134065,118900.0,118890.0,0.30421507]
[1752833234495,0.4134065,118900.0,118890.0,0.13608457]
[1752833235999,0.4134065,118900.0,118890.0,0.30421497]
[1752833236399,0.4134065,118900.0,118890.0,0.13608457]
[1752833236894,0.79587713,118900.0,118890.0,0.07151457]
[1752833237100,0.79587713,118900.0,118890.0,0.58396]
[1752833237602,0.2775904,118890.0,118880.0,0.0169673]
[1752833237791,0.66006103,118890.0,118880.0,0.04030451]
[1752833238898,0.66206103,118890.0,118880.0,0.0169673]
[1752833239790,1.24602103,118890.0,118880.0,0.0169673]
[1752833241298,1.3063859,118890.0,118880.0,0.0169673]
[1752833241505,1.3073859,118890.0,118880.0,0.0169673]
[1752833242904,0.10946,118870.0,118860.0,0.08184273]
[1752833243099,0.66008943,118870.0,118860.0,0.01692273]
[1752833243298,1.26276116,118870.0,118860.0,0.01692273]
[1752833243500,1.68101717,118870.0,118860.0,0.01692273]
[1752833244313,1.43101717,118870.0,118860.0,0.01692273]
[1752833245410,1.43201717,118870.0,118860.0,0.01692273]
[1752833246107,1.43401717,118870.0,118860.0,0.01692273]
[1752833246407,0.2649112,118840.0,118830.0,0.45426957]
[1752833246707,0.2649112,118840.0,118830.0,0.51496129]
[1752833247012,0.2649112,118840.0,118830.0,0.49168957]
[1752833247206,0.09671,118840.0,118820.0,0.01711754]
[1752833247510,0.2649254,118830.0,118820.0,0.29609714]
[1752833247710,0.27343863,118830.0,118820.0,0.29609714]
[1752833248102,0.27343863,118830.0,118820.0,0.12786754]
[1752833248502,0.65833926,118830.0,118820.0,0.12786754]
[1752833248702,0.65833926,118830.0,118820.0,0.10011754]
[1752833248907,0.65833926,118830.0,118820.0,0.06269754]
[1752833249113,0.65833926,118830.0,118820.0,0.06369754]
[1752833249411,0.65833926,118830.0,118820.0,0.23192714]
[1752833249805,0.65833926,118830.0,118820.0,0.2799796]
[1752833252417,0.65833926,118830.0,118820.0,0.11175]
[1752833252617,1.24249926,118830.0,118820.0,0.11175]
[1752833254924,1.24249926,118830.0,118820.0,0.06592]
[1752833255118,1.24249926,118830.0,118820.0,0.01192]
[1752833260123,0.86002863,118830.0,118820.0,0.04658]
[1752833260319,0.27343863,118830.0,118820.0,0.2799641]
[1752833260619,0.2649254,118830.0,118820.0,0.66243473]
[1752833260928,0.1682154,118830.0,118820.0,0.66243473]
[1752833261118,0.1870554,118830.0,118820.0,0.66243473]
[1752833261319,0.2610354,118830.0,118820.0,1.24663473]
[1752833261719,0.26962481,118830.0,118820.0,1.24663473]
[1752833261929,0.2610354,118830.0,118820.0,0.87236538]
[1752833262822,0.2610354,118830.0,118820.0,0.8641641]
[1752833264527,0.64692603,118830.0,118820.0,0.8641641]
[1752833264825,0.2644554,118830.0,118820.0,0.8641641]
[1752833265821,0.64692603,118830.0,118820.0,0.69595]
[1752833266023,0.64692603,118830.0,118820.0,0.11175]
[1752833267630,0.64906603,118830.0,118820.0,0.11175]
[1752833268530,0.64906603,118830.0,118820.0,0.01759]
[1752833269134,0.64906603,118830.0,118820.0,0.04674]
[1752833272031,0.64906603,118830.0,118820.0,0.01759]
[1752833272227,0.64906603,118830.0,118820.0,0.01192]
[1752833273239,0.64906603,118830.0,118820.0,0.02923853]
[1752833274540,1.23318603,118830.0,118820.0,0.01831853]
[1752833279841,1.23318603,118830.0,118820.0,3e-08]
[1752833280041,0.2786083,118810.0,118800.0,0.04609736]
[1752833280241,1.24519893,118810.0,118800.0,0.01694736]
[1752833280642,1.24519893,118810.0,118800.0,0.05178736]
[1752833281538,1.24519893,118810.0,118800.0,0.02563736]
[1752833281746,1.24519893,118810.0,118800.0,0.01994736]
[1752833282945,0.8627283,118810.0,118800.0,0.01994736]
[1752833283144,1.24519893,118810.0,118800.0,0.01994736]
[1752833283345,1.24519893,118810.0,118800.0,0.02394736]
[1752833286943,1.24519893,118810.0,118800.0,0.007]
[1752833290548,1.24523893,118810.0,118800.0,0.007]
[1752833290852,0.8627683,118810.0,118800.0,0.007]
[1752833291051,1.24523893,118810.0,118800.0,0.007]
[1752833293757,0.8627683,118810.0,118800.0,0.007]
[1752833293958,1.24523893,118810.0,118800.0,0.007]
[1752833299262,0.2719025,118800.0,118790.0,0.0049]
[1752833299560,0.65437313,118800.0,118790.0,0.0049]
[1752833300359,0.65437313,118800.0,118790.0,0.0149]
[1752833300360,1.23857313,118800.0,118790.0,0.0149]
[1752833300661,1.23857313,118800.0,118790.0,0.02654]
[1752833301563,1.23857313,118800.0,118790.0,0.0149]
[1752833303153,1.23857313,118800.0,118790.0,0.02654]
[1752833305663,1.23857313,118800.0,118790.0,0.05971]
[1752833306564,1.23857313,118800.0,118790.0,0.03216]
[1752833306865,1.23857313,118800.0,118790.0,0.02654]
[1752833307067,1.23857313,118800.0,118790.0,0.0149]
[1752833307470,1.62104376,118800.0,118790.0,0.0149]
[1752833308669,1.62104376,118800.0,118790.0,0.0109]
[1752833308970,1.62104376,118800.0,118790.0,0.0049]
[1752833312071,0.8561025,118800.0,118790.0,0.0049]
[1752833312272,1.23857313,118800.0,118790.0,0.0049]
[1752833312873,1.23857313,118800.0,118790.0,0.01654]
[1752833313068,0.8580225,118800.0,118790.0,0.01654]
[1752833313269,1.24049313,118800.0,118790.0,0.01654]
[1752833315373,1.30102621,118800.0,118790.0,0.01654]
[1752833316767,0.2660425,118800.0,118790.0,0.2836367]
[1752833316968,0.06566,118800.0,118790.0,0.2836367]
[1752833317173,0.1682425,118800.0,118790.0,0.66610733]
[1752833317374,0.1682425,118800.0,118790.0,0.2836367]
[1752833317675,0.2606225,118800.0,118790.0,0.2836367]
[1752833320279,0.06566,118800.0,118790.0,1.25450733]
[1752833320478,0.2339025,118800.0,118790.0,1.25450733]
[1752833320879,0.06566,118800.0,118790.0,1.25450733]
[1752833321068,0.2339025,118800.0,118790.0,1.25450733]
[1752833321678,0.2606225,118800.0,118790.0,1.25450733]
[1752833325984,0.2339025,118800.0,118790.0,1.25450733]
[1752833327283,0.2623325,118800.0,118790.0,1.25450733]
[1752833332484,0.2623325,118800.0,118790.0,0.8720367]
[1752833332786,0.2339025,118800.0,118790.0,0.8720367]
[1752833332986,0.2339025,118800.0,118790.0,1.25450733]
[1752833338892,0.2623325,118800.0,118790.0,1.25450733]
[1752833339390,0.2623325,118800.0,118790.0,0.8720367]
[1752833340495,0.2675825,118800.0,118790.0,0.8720367]
[1752833342194,0.2623325,118800.0,118790.0,0.8720367]
[1752833342997,0.2339025,118800.0,118790.0,1.25450733]
[1752833343297,0.06566,118800.0,118790.0,1.25450733]
[1752833343492,0.233903,118800.0,118790.0,1.25450733]
[1752833344194,0.09277,118810.0,118800.0,0.210873]
[1752833344398,0.2609988,118810.0,118800.0,0.277783]
[1752833344700,0.52710969,118820.0,118810.0,0.2777688]
[1752833344701,0.2147347,118820.0,118810.0,0.2777688]
[1752833344999,0.3871386,118830.0,118820.0,0.2668347]
[1752833345200,0.3503354,118830.0,118820.0,0.29505311]
[1752833346502,0.3082826,118830.0,118820.0,0.29505311]
[1752833346695,0.3102826,118830.0,118820.0,0.29505311]
[1752833347502,0.3142826,118830.0,118820.0,0.29505311]
[1752833347692,0.09877,118830.0,118820.0,0.29505311]
[1752833347891,0.2669705,118830.0,118820.0,0.29505311]
[1752833348494,0.09877,118830.0,118820.0,0.29505311]
[1752833348700,0.2669705,118830.0,118820.0,0.29505311]
[1752833349505,0.09877,118830.0,118820.0,0.29505311]
[1752833350001,0.2669705,118830.0,118820.0,0.29505311]
[1752833350691,0.09877,118830.0,118820.0,0.29505311]
[1752833352602,0.266971,118830.0,118820.0,0.29505311]
[1752833353502,0.272221,118830.0,118820.0,0.29505311]
[1752833356204,0.272221,118830.0,118820.0,0.88001311]
[1752833357002,0.272221,118830.0,118820.0,0.29505311]
[1752833357200,0.272221,118830.0,118820.0,0.87985311]
[1752833363708,0.266971,118830.0,118820.0,0.87985311]
[1752833364911,0.69732791,118830.0,118820.0,1.31021002]
[1752833368611,0.266971,118830.0,118820.0,1.31021002]
[1752833368815,0.69732791,118830.0,118820.0,1.31021002]
[1752833372016,0.266971,118830.0,118820.0,1.31021002]
[1752833372210,0.66889791,118830.0,118820.0,1.31021002]
[1752833372418,0.006,118830.0,118820.0,1.31021002]
[1752833373119,0.174201,118830.0,118820.0,1.31021002]
[1752833373314,0.69949791,118830.0,118820.0,1.30977002]
[1752833375121,0.69949791,118830.0,118820.0,0.72541002]
[1752833375420,0.269141,118830.0,118820.0,1.30977002]
[1752833375619,0.69949791,118830.0,118820.0,1.30977002]
[1752833376415,0.69949791,118830.0,118820.0,0.72541002]
[1752833376616,0.69949791,118830.0,118820.0,0.09859841]
[1752833376617,1.13496482,118830.0,118820.0,0.09859841]
[1752833376918,1.13496482,118830.0,118820.0,0.61253841]
[1752833377425,1.13496482,118830.0,118820.0,0.60161841]
[1752833377718,1.13496482,118830.0,118820.0,0.61275841]
[1752833378113,0.70460791,118830.0,118820.0,0.70920841]
[1752833378913,0.65683232,118830.0,118820.0,0.70920841]
[1752833379623,0.65683232,118830.0,118820.0,0.12488841]
[1752833379823,0.65683232,118830.0,118820.0,0.70920841]
[1752833381324,0.7173654,118830.0,118820.0,0.70920841]
[1752833381727,0.7173654,118830.0,118820.0,0.12488841]
[1752833381926,0.7173654,118830.0,118820.0,0.70920841]
[1752833382227,0.7173654,118830.0,118820.0,0.68104841]
[1752833382423,0.65683232,118830.0,118820.0,0.68104841]
[1752833383224,0.7173654,118830.0,118820.0,0.68104841]
[1752833384830,0.7173654,118830.0,118820.0,0.70881841]
[1752833386834,0.65683232,118830.0,118820.0,0.70881841]
[1752833387333,0.71738956,118830.0,118820.0,0.70881841]
[1752833392643,0.65683232,118830.0,118820.0,0.70881841]
[1752833392942,0.71738956,118830.0,118820.0,0.70881841]
[1752833393542,0.65683232,118830.0,118820.0,0.70881841]